[Event "Titled Tuesday Blitz June 15 2021"]
[Site "?"]
[Date "2021.06.15"]
[Round "04"]
[White "Xiong, Jeffery"]
[Black "Bazarov, Konstantin"]
[Result "1-0"]
[BlackClock "0:00:50"]
[BlackElo "2577"]
[BlackFideId "4137000"]
[ECO "B01"]
[TimeControl "180+1"]
[WhiteClock "0:00:54"]
[WhiteElo "2958"]
[WhiteFideId "2047640"]

1.e4 { [%clk 0:03:00] } 1...d5 { [%clk 0:02:54] } 2.exd5 { [%clk 0:03:00] }
2...Qxd5 { [%clk 0:02:52] } 3.Nf3 { [%clk 0:03:01] } 3...Nf6
{ [%clk 0:02:49] } 4.Be2 { [%clk 0:03:01] } 4...Nc6 { [%clk 0:02:48] } 5.O-O
{ [%clk 0:03:00] } 5...Bg4 { [%clk 0:02:48] } 6.h3 { [%clk 0:02:53] } 6...Bh5
{ [%clk 0:02:46] } 7.d4 { [%clk 0:02:27] } 7...e6 { [%clk 0:02:45] } 8.c4
{ [%clk 0:02:27] } 8...Qd8 { [%clk 0:02:43] } 9.Be3 { [%clk 0:02:25] }
9...Be7 { [%clk 0:02:42] } 10.Nc3 { [%clk 0:02:26] } 10...O-O
{ [%clk 0:02:42] } 11.Qd2 { [%clk 0:02:16] } 11...Bg6 { [%clk 0:02:37] }
12.Rfd1 { [%clk 0:02:10] } 12...Ne4 { [%clk 0:02:37] } 13.Nxe4
{ [%clk 0:02:09] } 13...Bxe4 { [%clk 0:02:36] } 14.a3 { [%clk 0:02:06] }
14...a5 { [%clk 0:02:34] } 15.Rac1 { [%clk 0:02:01] } 15...a4
{ [%clk 0:02:31] } 16.Ng5 { [%clk 0:01:52] } 16...Bg6 { [%clk 0:02:29] }
17.Bf4 { [%clk 0:01:08] } 17...Na5 { [%clk 0:02:21] } 18.Qe3
{ [%clk 0:01:08] } 18...Nb3 { [%clk 0:02:19] } 19.Rc3 { [%clk 0:01:08] }
19...Bf6 { [%clk 0:02:14] } 20.Nf3 { [%clk 0:01:06] } 20...Qc8
{ [%clk 0:02:05] } 21.Be5 { [%clk 0:01:06] } 21...Be7 { [%clk 0:02:01] }
22.h4 { [%clk 0:01:04] } 22...Rd8 { [%clk 0:01:55] } 23.h5 { [%clk 0:00:54] }
23...Bxh5 { [%clk 0:01:53] } 24.Bxg7 { [%clk 0:00:54] } 24...Bxf3
{ [%clk 0:01:48] } 25.Bh6 { [%clk 0:00:55] } 25...Nxd4 { [%clk 0:01:19] }
26.Rxd4 { [%clk 0:00:53] } 26...Rxd4 { [%clk 0:01:11] } 27.Qxd4
{ [%clk 0:00:54] } 27...e5 { [%clk 0:00:50] } 28.Qxe5 { [%clk 0:00:54] }
1-0